bitfinex/quotes_ETHUSD_20250625
["timestamp","ask_amount","ask_price","bid_price","bid_amount"]
[1750837302894,4.08471047,2448.2,2447.8,4.08529083]
[1750837303094,0.1276775,2448.1,2447.9,4.08511894]
[1750837303400,0.546,2448.3,2447.9,4.08511894]
[1750837303601,0.12767031,2448.2,2447.9,4.08511894]
[1750837303800,0.12767031,2448.1,2447.9,4.08511894]
[1750837303998,0.12767331,2448.0,2447.9,4.08511894]
[1750837304602,0.12767318,2448.2,2447.9,4.08511894]
[1750837304802,0.12767295,2448.1,2447.9,4.08511894]
[1750837305094,4.6304796,2448.3,2447.9,4.08511894]
[1750837305317,0.12767126,2448.2,2447.9,4.08511894]
[1750837305505,0.12767177,2448.1,2447.8,4.08519912]
[1750837305700,0.12767177,2448.0,2447.7,5.87232736]
[1750837305920,4.08464457,2448.2,2447.7,5.87232736]
[1750837306126,0.12767651,2448.1,2447.7,5.87232736]
[1750837306426,0.12767651,2448.0,2447.8,4.08527675]
[1750837306720,4.08488175,2448.1,2447.7,1.787]
[1750837307020,0.53617071,2448.0,2447.5,4.08571375]
[1750837307191,10.57376853,2448.1,2447.6,4.08557352]
[1750837307192,0.12768253,2447.9,2447.6,4.08557352]
[1750837307393,6.48883706,2448.1,2447.5,4.08576839]
[1750837307592,4.08517423,2447.9,2447.5,4.08576839]
[1750837307798,0.12768302,2447.8,2447.6,4.0855593]
[1750837307997,4.08504851,2448.0,2447.6,4.0855593]
[1750837308609,0.12768528,2447.9,2447.6,4.0855593]
[1750837308809,10.57370345,2448.1,2447.7,4.0854007]
[1750837309009,0.12768129,2448.0,2447.7,4.0854007]
[1750837309228,0.12768129,2447.9,2447.6,4.08554343]
[1750837309403,0.12768129,2447.8,2447.6,4.08554343]
[1750837309603,4.08497166,2448.0,2447.6,4.08554343]
[1750837310030,0.12768566,2447.9,2447.6,4.08554343]
[1750837310345,0.12768566,2447.8,2447.6,4.08554343]
[1750837310514,4.08497166,2448.0,2447.6,4.08554343]
[1750837310714,0.1276857,2447.9,2447.6,4.08554343]
[1750837310942,0.1276857,2447.8,2447.6,4.08554343]
[1750837311143,4.08497166,2448.0,2447.6,4.08554343]
[1750837311305,0.12768605,2447.9,2447.7,4.08546095]
[1750837311505,10.57374008,2448.1,2447.7,4.08546095]
[1750837311730,0.12768323,2448.0,2447.7,4.08546095]
[1750837311929,0.12768323,2447.9,2447.7,4.08546095]
[1750837312115,10.57374008,2448.1,2447.7,4.08546095]
[1750837312315,0.12768315,2448.0,2447.7,4.08546095]
[1750837312512,0.12768315,2447.9,2447.7,4.08546095]
[1750837312754,10.57374008,2448.1,2447.7,4.08546095]
[1750837313050,4.2126614,2448.0,2447.5,4.08572589]
[1750837313257,4.21283936,2447.9,2447.5,4.08572589]
[1750837313462,4.0851526,2447.9,2447.5,4.08572589]
[1750837313834,0.1276881,2447.8,2447.5,4.08572589]
[1750837314136,4.08496732,2448.0,2447.5,5.43117059]
[1750837314455,4.21290318,2447.9,2447.5,5.43117059]
[1750837314664,4.08521509,2447.9,2447.5,5.43117059]
[1750837315157,4.08553945,2447.7,2447.4,0.7517]
[1750837315359,4.21340656,2447.6,2447.2,6.721]
[1750837315554,10.57421874,2447.8,2447.3,4.08612194]
[1750837315555,10.57424473,2447.8,2447.3,4.08612194]
[1750837316078,4.21319929,2447.7,2447.2,10.80721332]
[1750837316243,0.12770175,2447.6,2447.2,10.80721332]
[1750837316561,0.12770175,2447.6,2447.2,12.55170326]
[1750837316763,0.12770175,2447.6,2447.3,4.08612961]
[1750837317328,0.12770175,2447.6,2447.4,4.08594672]
[1750837317531,10.0,2448.0,2447.5,4.08573348]
[1750837317759,0.12768291,2447.9,2447.7,4.08537617]
[1750837318059,14.0847132,2448.2,2447.7,4.90243945]
[1750837318246,0.12767858,2448.1,2447.7,4.90243945]
[1750837318865,0.12767558,2448.0,2447.9,0.791]
[1750837319160,0.12767558,2448.1,2447.9,0.791]
[1750837319485,0.12767503,2448.0,2447.9,0.791]
[1750837319753,0.12767489,2448.1,2447.9,0.791]
[1750837319979,0.12767489,2448.0,2447.9,0.791]
[1750837320330,0.12767868,2448.0,2447.9,0.791]
[1750837320532,0.12767868,2448.0,2447.7,1.56940018]
[1750837320789,14.08470128,2448.2,2447.5,4.0857754]
[1750837320790,16.48883706,2448.2,2447.5,4.08576691]
[1750837321059,4.0850343,2448.0,2447.6,4.08563263]
[1750837321251,4.21282546,2447.9,2447.5,4.86536472]
[1750837321566,4.08503484,2448.0,2447.6,4.08562725]
[1750837321738,0.12768323,2447.9,2447.6,4.08562725]
[1750837321932,0.12768323,2447.9,2447.6,5.82882645]
[1750837322260,0.12768323,2447.9,2447.6,1.7431992]
[1750837322464,4.21283559,2447.9,2447.6,1.7431992]
[1750837322638,4.0853741,2447.8,2447.5,0.7796]
[1750837322844,4.08514439,2447.9,2447.5,4.8653897]
[1750837323151,4.08490834,2448.1,2447.6,4.08563188]
[1750837323330,0.12768205,2448.0,2447.7,4.08546759]
[1750837323533,0.12768205,2448.0,2447.7,4.08534185]
[1750837323754,0.12768205,2448.0,2447.8,4.49380789]
[1750837323975,10.0,2448.2,2447.9,4.8509321]
[1750837324959,4.08437582,2448.4,2448.0,4.08490195]
[1750837325276,4.08437582,2448.4,2447.9,2.5248]
[1750837325277,4.08473974,2448.2,2447.9,2.5248]
[1750837325441,4.0846336,2448.2,2447.9,2.5248]
[1750837326053,14.08454202,2448.3,2447.9,6.60993193]
[1750837327167,14.08438535,2448.4,2448.0,4.08494662]
[1750837327670,14.08438535,2448.4,2447.9,6.60982959]
[1750837327871,14.08438535,2448.4,2447.9,8.39249072]
[1750837328171,14.08438535,2448.4,2448.0,4.08496135]
[1750837328946,0.546,2448.7,2448.1,4.08468345]
[1750837329252,4.08405628,2448.6,2448.1,4.08468345]
[1750837329566,4.08405628,2448.6,2448.2,4.08454152]
[1750837329772,4.08397391,2448.6,2448.2,4.08454152]
[1750837330350,4.08418112,2448.5,2448.1,4.08471644]
[1750837330669,4.08418112,2448.5,2448.0,12.56189114]
[1750837331057,4.08437561,2448.4,2448.0,8.477]
[1750837332070,4.08437561,2448.4,2448.0,12.56195105]
[1750837332244,4.08420404,2448.5,2448.0,8.477]
[1750837332447,4.08440632,2448.4,2448.0,8.477]
[1750837332774,4.08440632,2448.4,2448.0,12.56196714]
[1750837333071,4.08440632,2448.4,2448.0,8.477]
[1750837333244,4.08423681,2448.5,2448.0,12.56188899]
[1750837333577,4.08423681,2448.5,2448.1,4.08478402]
[1750837333948,4.08423681,2448.5,2448.0,12.56188294]
[1750837334140,4.08431729,2448.4,2448.0,12.56188294]
[1750837334346,4.08456036,2448.3,2448.0,8.477]
[1750837334546,4.08461892,2448.3,2448.0,8.477]
[1750837335988,4.08438541,2448.4,2448.0,12.56192568]
[1750837336189,4.08421345,2448.5,2448.1,4.08479952]
[1750837336484,4.08431408,2448.4,2448.0,12.56187261]
[1750837336774,4.08431408,2448.4,2448.0,8.477]
[1750837337158,4.08456025,2448.3,2448.0,8.477]
[1750837337359,4.08438773,2448.4,2448.0,8.477]
[1750837337556,4.08438773,2448.4,2448.0,12.56189999]
[1750837337774,4.0842387,2448.5,2448.0,12.56189999]
[1750837337981,4.08434078,2448.4,2448.0,12.56189999]
[1750837339030,4.08446898,2448.3,2448.0,8.477]
[1750837339479,4.08440252,2448.4,2448.0,8.477]
[1750837340006,14.62980449,2448.7,2448.0,14.3440436]
[1750837340007,10.546,2448.7,2448.0,14.3440436]
[1750837340208,4.08414278,2448.5,2448.1,4.08469969]
[1750837340381,4.08414278,2448.5,2448.1,4.08479043]
[1750837340708,4.08405599,2448.6,2448.1,4.08479043]
[1750837341208,4.08425227,2448.5,2448.0,14.34404449]
[1750837341797,4.08405599,2448.6,2448.1,4.0847953]
[1750837342102,4.08405599,2448.6,2448.1,4.08480045]
[1750837342407,4.08421094,2448.5,2448.1,4.08480045]
[1750837344420,4.08413718,2448.5,2448.1,4.08480045]
[1750837344792,4.08406895,2448.6,2448.2,4.08461921]
[1750837344992,14.08391198,2448.7,2448.3,7.4906]
[1750837345297,14.08391198,2448.7,2448.3,11.57505867]
[1750837345502,4.08397695,2448.6,2448.3,6.71]
[1750837345738,4.08419664,2448.5,2448.3,6.71]
[1750837346025,4.08407099,2448.6,2448.3,6.71]
[1750837346224,14.0839552,2448.7,2448.3,6.71]
[1750837347102,18.16792091,2448.7,2448.3,6.71]
[1750837347500,14.0839552,2448.7,2448.3,6.71]
[1750837347911,14.0839552,2448.7,2448.3,10.79444318]
[1750837349311,4.08397273,2448.6,2448.3,6.71]
[1750837349826,14.08388468,2448.7,2448.3,6.71]
[1750837350538,14.08388468,2448.7,2448.3,10.79443362]
[1750837350993,4.08399412,2448.6,2448.3,6.71]
[1750837352031,14.08388673,2448.7,2448.3,6.71]
[1750837352721,4.08397172,2448.6,2448.3,6.71]
[1750837352926,14.0839011,2448.7,2448.3,6.71]
[1750837353518,18.16786428,2448.7,2448.3,6.71]
[1750837353716,4.08398027,2448.6,2448.3,6.71]
[1750837355124,14.08386241,2448.7,2448.3,10.7944608]
[1750837355933,14.08371984,2448.8,2448.3,10.7944608]
[1750837356227,14.08371984,2448.8,2448.4,4.08427036]
[1750837357333,4.08313257,2449.1,2448.5,2.5667]
[1750837357500,4.08319872,2449.1,2448.7,4.08379747]
[1750837357849,10.0,2449.1,2448.7,4.08379747]
[1750837358133,4.08270935,2449.4,2448.9,4.89744471]
[1750837358325,4.08253145,2449.5,2449.1,4.08311286]
[1750837358521,10.0,2449.4,2449.1,4.08311286]
[1750837358735,2.69660284,2449.8,2449.0,8.462]
[1750837358911,10.0,2449.5,2449.1,4.08297153]
[1750837359308,4.082326,2449.6,2449.1,4.08313257]
[1750837359507,4.08222337,2449.7,2449.3,0.8202]
[1750837359732,14.08230836,2449.6,2449.3,0.8202]
[1750837360645,10.0,2449.6,2449.3,0.8202]
[1750837361560,10.0,2449.6,2449.1,5.46801726]
[1750837361561,4.08255381,2449.5,2449.1,2.1559877]
[1750837361741,4.08268066,2449.4,2449.1,2.1559877]
[1750837362443,4.08307709,2449.2,2448.9,1.26084447]
[1750837362740,4.08314307,2449.1,2449.0,6.708]
[1750837363337,4.0830595,2449.2,2449.0,6.708]
[1750837363539,4.08288979,2449.3,2449.0,6.708]
[1750837363851,4.08304301,2449.2,2449.0,6.708]
[1750837365544,4.08313257,2449.1,2449.0,6.708]
[1750837366331,4.08306566,2449.2,2449.0,6.708]
[1750837367021,4.08313257,2449.1,2449.0,6.708]
[1750837367563,4.0832993,2449.0,2448.6,6.707]
[1750837368236,4.08368592,2448.8,2448.5,2.5337]
[1750837368441,4.08356689,2448.9,2448.6,6.707]
[1750837369969,4.08374602,2448.8,2448.5,0.7817]
[1750837370171,4.08355933,2448.9,2448.6,6.707]
[1750837371262,4.08363678,2448.8,2448.6,6.707]
[1750837371463,4.08379423,2448.8,2448.5,6.707]
[1750837371843,4.08383679,2448.7,2448.5,6.707]
[1750837372746,4.0836977,2448.8,2448.5,6.707]
[1750837373171,4.08380627,2448.7,2448.4,1.752]
[1750837373351,4.08380627,2448.7,2448.5,6.707]
[1750837374365,4.08380627,2448.7,2448.3,4.873465]
[1750837374543,4.08334846,2449.0,2448.4,10.79127168]
[1750837374749,4.08354042,2448.9,2448.5,4.08401017]
[1750837377062,4.08363628,2448.8,2448.4,10.79120209]
[1750837377582,4.08356948,2448.9,2448.4,10.79117815]
[1750837377748,4.08339271,2449.0,2448.5,4.08405988]
[1750837377949,4.08339271,2449.0,2448.7,0.8313]
[1750837381604,6.48883706,2449.1,2448.7,0.8313]
[1750837381605,10.57206541,2449.1,2448.7,0.8313]
[1750837381756,14.08311643,2449.2,2448.7,4.91507919]
[1750837382381,4.08319771,2449.1,2448.7,4.91507919]
[1750837382678,4.08314094,2449.1,2448.7,4.91507919]
[1750837383770,4.08314094,2449.1,2448.8,6.706]
[1750837384809,8.36003913,2449.1,2448.5,8.458]
[1750837385007,4.08340752,2449.0,2448.5,8.458]
[1750837385174,4.08340752,2449.0,2448.6,4.08389927]
[1750837385377,4.08322858,2449.1,2448.6,4.08389927]
[1750837385593,4.08322858,2449.1,2448.7,0.7743]
[1750837385800,4.08330858,2449.0,2448.7,0.7743]
[1750837386005,4.08355929,2448.9,2448.5,9.2396]
[1750837386303,4.08355939,2448.9,2448.5,13.3236673]
[1750837386602,4.08336616,2449.0,2448.6,4.08394746]
[1750837387921,4.08321638,2449.1,2448.6,1.74076148]
[1750837388133,4.08321638,2449.1,2448.6,5.82458451]
[1750837388307,4.08330531,2449.0,2448.6,5.82458451]
[1750837388494,4.08322719,2449.1,2448.6,5.82458451]
[1750837389925,14.08312013,2449.2,2448.8,4.89001522]
[1750837390124,14.08298072,2449.2,2448.9,6.706]
[1750837390341,10.0,2449.2,2448.9,6.706]
[1750837390630,4.08319235,2449.1,2448.9,6.706]
[1750837390990,8.16649142,2449.1,2448.8,0.8064]
[1750837391294,4.08331155,2449.0,2448.8,7.5124]
[1750837391524,4.0836163,2448.9,2448.6,0.8204]
[1750837391737,1.81663492,2449.0,2448.4,0.8204]
[1750837391901,4.08413314,2448.5,2448.2,2.5049]
[1750837392100,4.08413314,2448.5,2448.3,6.706]
[1750837393129,4.08413314,2448.5,2448.2,9.2109]
[1750837395394,4.08403617,2448.6,2448.2,13.29551216]
[1750837395600,4.08403617,2448.6,2448.2,15.03355231]
[1750837395803,4.08403617,2448.6,2448.2,10.94894015]
[1750837396118,4.08403617,2448.6,2448.2,15.03356986]
[1750837396296,0.546,2448.6,2448.0,0.8077]
[1750837396502,4.08457788,2448.3,2448.0,0.8077]
[1750837396697,4.08460655,2448.3,2448.0,0.8077]
[1750837398032,4.08439603,2448.4,2448.0,0.8077]
[1750837398230,4.08447804,2448.3,2448.0,0.8077]
[1750837398938,4.08466655,2448.2,2448.0,0.8077]
[1750837399641,4.08455538,2448.3,2448.0,0.8077]
[1750837400849,4.08440316,2448.4,2448.0,4.89263093]
[1750837401030,4.08436827,2448.4,2448.0,4.89263093]
[1750837402151,14.08423695,2448.5,2448.0,4.89263093]
[1750837402436,4.08431832,2448.4,2448.0,4.89263093]
[1750837402843,4.08448113,2448.3,2448.0,0.8077]
[1750837403224,4.08440362,2448.4,2448.0,0.8077]
[1750837403613,4.08448349,2448.3,2448.0,0.8077]
[1750837404925,4.08439602,2448.4,2448.0,0.8077]
[1750837407843,4.08439602,2448.4,2448.0,4.892645]
[1750837409920,14.08419965,2448.5,2448.1,4.08471638]
[1750837410952,14.08419965,2448.5,2448.0,4.8925604]
[1750837411255,14.08419965,2448.5,2448.1,4.08469492]
[1750837414068,14.08419965,2448.5,2448.0,4.89258594]
[1750837414246,4.08433033,2448.4,2448.0,4.89258594]
[1750837414435,14.08421613,2448.5,2448.0,4.89251306]
[1750837414636,14.08421613,2448.5,2448.1,4.08478904]
[1750837416672,10.0,2448.5,2448.1,4.08478904]
[1750837417044,14.08414028,2448.5,2448.1,4.08478904]
[1750837419356,4.08433324,2448.4,2448.0,4.89262324]
[1750837419562,4.08433324,2448.4,2448.0,4.89266196]
[1750837420876,10.0,2448.5,2448.0,4.89266196]
[1750837420877,14.08420368,2448.5,2448.1,4.08479702]
[1750837423884,14.08420368,2448.5,2448.0,4.89257465]
[1750837424185,14.08420368,2448.5,2448.1,4.08479947]
[1750837424354,0.546,2449.0,2448.2,0.7891]
[1750837424555,0.546,2449.4,2448.4,0.7851]
[1750837424882,4.08354062,2448.9,2448.4,0.7851]
[1750837425081,4.08337897,2449.0,2448.5,12.53900513]
[1750837425288,0.87125652,2448.9,2448.5,12.53900513]
[1750837425591,4.95475003,2448.9,2448.5,12.53900513]
[1750837425974,0.87125652,2448.9,2448.5,12.53900513]
[1750837426460,4.95472425,2448.9,2448.5,12.53900513]
[1750837427081,0.87125652,2448.9,2448.6,4.08396253]
[1750837427274,4.08340059,2449.0,2448.6,4.08396253]
[1750837427476,14.62923066,2449.1,2448.6,4.08396253]
[1750837427876,4.08331491,2449.0,2448.5,12.53903558]
[1750837428077,4.0832993,2449.0,2448.5,12.53903558]
[1750837428281,4.0832993,2449.0,2448.6,4.0839596]
[1750837428491,2.52011424,2449.0,2448.7,4.0837732]
[1750837428672,14.08321464,2449.1,2448.7,4.0837732]
[1750837430872,10.0,2449.1,2448.7,4.0837732]
[1750837431503,14.08314749,2449.1,2448.7,4.0837732]
[1750837432403,14.08314749,2449.1,2448.6,4.08386256]
[1750837432611,4.08330845,2449.0,2448.6,4.08386256]
[1750837434101,14.08322784,2449.1,2448.7,4.08379553]
[1750837434270,16.60332115,2449.1,2448.6,4.08386558]
[1750837434472,4.08332002,2449.0,2448.6,4.08386558]
[1750837434870,16.60332821,2449.1,2448.6,4.08386558]
[1750837435710,16.60332821,2449.1,2448.7,4.08379562]
[1750837437119,16.60332821,2449.1,2448.6,4.08388145]
[1750837437474,4.08330444,2449.0,2448.6,4.08388145]
[1750837438013,4.08331676,2449.0,2448.6,4.08389377]
[1750837438813,6.48883706,2448.9,2448.4,0.7851]
[1750837438984,4.08394798,2448.7,2448.2,4.08458754]
[1750837439183,10.0,2448.8,2448.2,0.7797]
[1750837439392,4.08422196,2448.5,2448.2,0.7797]
[1750837439585,4.62992509,2448.7,2448.3,4.08446604]
[1750837439786,4.62992509,2448.7,2448.2,0.7797]
[1750837440478,0.546,2448.7,2448.2,6.1955328]
[1750837440678,10.0,2448.8,2448.4,4.08418581]
[1750837440978,14.0836392,2448.8,2448.4,4.08418581]
[1750837442521,10.0,2448.8,2448.4,4.08418581]
[1750837444677,14.08365363,2448.8,2448.3,4.0843714]
[1750837444878,4.08383748,2448.7,2448.3,4.0843714]
[1750837445677,14.08370668,2448.8,2448.4,4.08429257]
[1750837446617,10.0,2448.8,2448.5,4.84302272]
[1750837447591,10.0,2448.8,2448.5,0.7589]
[1750837448231,14.08374401,2448.8,2448.5,0.7589]
[1750837448834,4.08383097,2448.7,2448.5,0.7589]
[1750837449793,4.08383097,2448.7,2448.3,4.88978862]
[1750837450591,4.08383097,2448.7,2448.3,6.45563326]
[1750837450821,4.08383097,2448.7,2448.3,2.37124464]
[1750837451900,4.08383097,2448.7,2448.3,6.45561285]
[1750837452100,14.08372046,2448.8,2448.3,6.45561285]
[1750837452426,4.08383975,2448.7,2448.3,6.45561285]
[1750837452824,4.08406294,2448.6,2448.3,2.37124464]
[1750837453229,4.08406294,2448.6,2448.3,0.8054]
[1750837453516,4.08390213,2448.7,2448.3,4.88983996]
[1750837453701,4.08407341,2448.6,2448.4,8.447]
[1750837454513,4.08389712,2448.7,2448.4,8.447]
[1750837454914,4.08397575,2448.6,2448.4,8.447]
[1750837455219,4.0841376,2448.5,2447.9,9.804]
[1750837455437,4.08421741,2448.5,2448.1,4.08478822]
[1750837455924,4.08421741,2448.5,2448.0,14.28498713]
[1750837456602,4.0843095,2448.4,2448.0,14.28498713]
[1750837456798,4.08428076,2448.5,2448.0,14.28498713]
[1750837457318,4.08401765,2448.6,2448.0,14.28498713]
[1750837457624,10.0,2448.5,2448.1,4.08478654]
[1750837458328,14.08413384,2448.5,2448.1,4.08478654]
[1750837459531,4.08432458,2448.4,2448.0,7.58597818]
[1750837459823,4.08466891,2448.2,2448.0,0.7727]
[1750837460019,4.08466891,2448.2,2448.0,2.5207]
[1750837460239,4.08470174,2448.2,2448.0,0.7727]
[1750837460529,4.08470174,2448.2,2448.0,9.2187]
[1750837460912,4.08470174,2448.2,2448.0,6.698]
[1750837461303,4.08480045,2448.1,2448.0,6.698]
[1750837461628,4.08472308,2448.2,2447.9,8.445]
[1750837461834,4.08482148,2448.1,2447.9,8.445]
[1750837462299,4.08472016,2448.2,2447.9,8.445]
[1750837463142,4.0845534,2448.3,2447.9,8.445]
[1750837464744,4.08461319,2448.3,2447.9,8.445]
[1750837466942,4.08429995,2448.4,2447.9,8.445]
[1750837466943,4.0843525,2448.4,2447.9,12.53013408]
[1750837467544,4.08422355,2448.5,2448.1,0.7652]
[1750837467840,4.08407755,2448.6,2448.2,4.08457144]
[1750837468142,4.08407755,2448.6,2448.2,10.78157144]
[1750837469820,10.0,2448.6,2448.3,4.08444888]
[1750837470026,10.0,2448.6,2448.4,0.7534]
[1750837470516,14.08398043,2448.6,2448.4,0.7534]
[1750837470713,4.08413314,2448.5,2448.2,6.697]
[1750837470914,4.08430243,2448.4,2448.2,7.5192]
[1750837471114,4.08423047,2448.5,2448.2,7.5192]
[1750837471620,10.0,2448.6,2448.2,11.60378245]
[1750837471621,14.08404441,2448.6,2448.2,11.60378245]
[1750837472234,14.08404441,2448.6,2448.2,7.5192]
[1750837472423,4.08413398,2448.5,2448.2,7.5192]
[1750837472833,10.0,2448.6,2448.2,7.5192]
[1750837472834,14.08405718,2448.6,2448.2,11.60382692]
[1750837473435,14.08405718,2448.6,2448.2,7.5192]
[1750837473750,4.08414535,2448.5,2448.2,7.5192]
[1750837474826,4.08431719,2448.4,2448.2,7.5192]
[1750837476160,14.08404228,2448.6,2448.2,7.5192]
[1750837476358,4.08419994,2448.5,2448.2,7.5192]
[1750837476560,4.08413314,2448.5,2448.2,7.5192]
[1750837478160,14.08397839,2448.6,2448.2,7.5192]
[1750837478532,14.08397839,2448.6,2448.2,11.60375548]
[1750837478740,0.546,2449.2,2448.3,0.8312]
[1750837478950,4.0836087,2448.9,2448.4,4.08421426]
[1750837479156,4.0836087,2448.9,2448.5,6.695]
[1750837479757,4.0836087,2448.9,2448.5,10.77910823]
[1750837479960,4.0836087,2448.9,2448.5,6.695]
[1750837480157,5.96510156,2448.9,2448.5,6.695]
[1750837480340,4.08363279,2448.8,2448.5,6.695]
[1750837482665,4.08383002,2448.7,2448.5,6.695]
[1750837483861,4.08355634,2448.9,2448.5,6.695]
[1750837484365,4.08355634,2448.9,2448.5,10.77903154]
[1750837485267,4.08340386,2449.0,2448.5,6.695]
[1750837485468,2.53034425,2448.9,2448.5,10.77902486]
[1750837486671,2.53034425,2448.9,2448.6,4.08396298]
[1750837487575,2.53034425,2448.9,2448.5,10.77906866]
[1750837487739,6.61383384,2448.9,2448.5,10.77906866]
[1750837488677,2.53034425,2448.9,2448.6,4.08389316]
[1750837489079,2.53034425,2448.9,2448.5,10.77903653]
[1750837490179,2.53034425,2448.9,2448.6,4.08394922]
[1750837492276,2.53034425,2448.9,2448.5,10.77903119]
[1750837492478,2.53034425,2448.9,2448.6,4.08390512]
[1750837492884,21.22007697,2449.1,2448.7,4.08379769]
[1750837493092,21.22007697,2449.1,2448.6,0.7914]
[1750837493093,4.08344035,2449.0,2448.6,0.7914]
[1750837493297,10.0,2448.9,2448.6,0.7914]
[1750837493692,14.08347682,2448.9,2448.6,0.7914]
[1750837494501,14.08347682,2448.9,2448.5,10.77897752]
[1750837494805,10.0,2449.0,2448.7,4.08376922]
[1750837494966,10.0,2449.0,2448.6,4.08388637]
[1750837495163,14.08332347,2449.0,2448.6,4.08388637]
[1750837496394,4.08349497,2448.9,2448.5,10.77908666]
[1750837496598,14.08339687,2449.0,2448.6,4.08386851]
[1750837497298,4.0835352,2448.9,2448.5,6.695]
[1750837497476,4.0835352,2448.9,2448.4,4.90796571]
[1750837497678,4.0835352,2448.9,2448.5,6.69]
[1750837498009,4.0835352,2448.9,2448.5,10.77411053]
[1750837498497,4.0835352,2448.9,2448.5,6.69]
[1750837499502,17.08356069,2449.0,2448.5,10.77412567]
[1750837499875,17.08356069,2449.0,2448.5,4.08412567]
[1750837500072,17.08356069,2449.0,2448.5,10.77312567]
[1750837500398,17.08356069,2449.0,2448.4,0.8238]
[1750837500566,0.64802063,2448.9,2448.5,10.77310769]
[1750837501305,4.73152514,2448.9,2448.5,6.689]
[1750837501670,0.64802063,2448.9,2448.5,10.77310054]
[1750837501871,6.48883706,2448.7,2448.3,6.689]
[1750837502100,0.76828577,2448.7,2448.5,4.0840868]
[1750837502302,0.546,2448.8,2448.4,4.08424279]
[1750837502903,10.546,2448.8,2448.5,4.08412076]
[1750837503102,0.546,2448.8,2448.5,4.08412076]
[1750837503304,0.64802063,2448.9,2448.6,4.08395103]
[1750837503473,0.546,2449.0,2448.6,4.08395103]
[1750837503778,10.0,2448.9,2448.5,4.08403386]
[1750837504697,14.08346845,2448.9,2448.4,4.91564305]
[1750837504878,4.62984475,2448.7,2448.3,1.741]
[1750837505080,4.62984475,2448.7,2448.3,8.429]
[1750837505480,4.62984475,2448.7,2447.8,6.60072499]
[1750837505481,4.08428622,2448.5,2447.8,6.60072499]
[1750837505810,4.0845679,2448.3,2447.9,6.688]
[1750837506175,4.08451524,2448.3,2447.9,6.688]
[1750837506711,4.08464341,2448.2,2447.9,6.688]
[1750837507203,0.546,2448.1,2447.9,6.688]
[1750837507407,4.63085734,2448.1,2447.9,6.688]
[1750837507910,0.546,2448.1,2447.9,6.688]
[1750837509504,4.08496732,2448.0,2447.9,6.688]
[1750837511407,1.87157804,2448.0,2447.3,0.8219]
[1750837511708,1.87157804,2448.0,2447.3,7.5089]
[1750837511709,4.08571076,2447.6,2447.3,7.5089]
[1750837511908,4.08538887,2447.8,2447.3,11.5949842]
[1750837512576,4.08538887,2447.8,2447.4,4.08595595]
[1750837513091,4.08538887,2447.8,2447.3,11.59493563]
[1750837513092,4.08538728,2447.8,2447.3,11.59493563]
[1750837513298,4.08556303,2447.7,2447.3,11.59493563]
[1750837513497,4.08560418,2447.7,2447.3,0.8219]
[1750837513702,4.08566878,2447.6,2447.4,6.687]
[1750837513902,4.08556734,2447.7,2447.4,6.687]
[1750837514610,4.0856418,2447.6,2447.4,6.687]
[1750837516486,4.63137115,2447.8,2447.4,10.77290161]
[1750837516792,4.63137115,2447.8,2447.4,6.687]
[1750837517386,4.63137115,2447.8,2447.4,10.77289106]
[1750837517587,4.63137115,2447.8,2447.4,6.687]
[1750837517788,6.48883706,2448.0,2447.5,4.08569081]
[1750837517789,10.0,2448.0,2447.5,4.08569081]
[1750837517996,0.546,2448.2,2447.8,4.08530108]
[1750837517997,10.0,2448.2,2447.8,4.08530108]
[1750837518194,4.62970904,2448.8,2448.0,0.82]
[1750837518387,4.08296856,2449.2,2448.1,0.82]
[1750837518388,4.21148907,2448.7,2448.1,0.82]
[1750837518583,10.0,2448.7,2448.3,4.0844523]
[1750837518807,10.0,2448.7,2448.4,8.429]
[1750837519018,0.546,2449.0,2448.4,12.513188]
[1750837519204,4.21119026,2448.9,2448.5,0.8027]
[1750837519422,4.08374385,2448.8,2448.5,0.8027]
[1750837520329,10.0,2448.8,2448.5,0.8027]
[1750837520629,4.08330773,2449.0,2448.5,0.8027]
[1750837520786,0.12763578,2448.9,2448.5,0.8027]
[1750837520991,4.08320325,2449.1,2448.5,2.13429469]
[1750837521222,4.62889512,2449.3,2448.5,2.13429469]
[1750837521223,4.08305895,2449.2,2448.7,4.0837079]
[1750837521395,10.12763271,2449.1,2448.8,7.4586]
[1750837521610,10.0,2449.1,2448.8,7.4586]
[1750837521953,4.08260857,2449.5,2449.0,4.08322623]
[1750837522090,10.0,2449.5,2449.1,4.08306117]
[1750837522286,14.08247074,2449.5,2449.2,6.686]
[1750837522591,4.08283199,2449.3,2449.2,6.686]
[1750837523408,4.08270966,2449.4,2449.2,6.686]
[1750837523619,4.08279916,2449.3,2449.2,6.686]
[1750837525396,5.44539632,2449.3,2448.7,0.7918]
[1750837525597,4.08353965,2448.9,2448.8,6.684]
[1750837526434,4.08363279,2448.8,2448.7,6.684]
[1750837526603,4.0833024,2449.0,2448.7,6.684]
[1750837527898,4.08348587,2448.9,2448.7,6.684]
[1750837528232,4.08338708,2449.0,2448.7,6.684]
[1750837529307,4.08363279,2448.8,2448.7,6.684]
[1750837529508,4.08379956,2448.7,2448.6,6.683]
[1750837529707,0.81665495,2449.0,2448.6,6.683]
[1750837529922,4.08354581,2448.9,2448.6,6.683]
[1750837530227,4.08305249,2449.2,2448.7,4.08370442]
[1750837530432,10.0,2449.0,2448.8,0.7968]
[1750837531103,14.0833097,2449.0,2448.8,0.7968]
[1750837531303,10.0,2449.0,2448.8,0.7968]
[1750837531504,14.08343287,2449.0,2448.8,7.4798]
[1750837532738,10.0,2449.0,2448.8,7.4798]
[1750837533232,14.08331826,2449.0,2448.8,7.4798]
[1750837538522,5.89958852,2449.2,2448.8,7.4798]
[1750837538717,10.0,2449.0,2448.8,7.4798]
[1750837539032,10.0,2449.1,2448.8,11.56337114]
[1750837540341,10.0,2449.1,2448.8,11.56333833]
[1750837540637,10.0,2449.2,2448.8,11.56333833]
[1750837541343,10.0,2449.2,2448.9,4.08346511]
[1750837541914,10.0,2449.2,2449.0,0.7925]
[1750837542846,10.0,2449.6,2449.0,6.03156648]
[1750837543023,10.0,2449.4,2449.0,6.03161097]
[1750837543212,10.0,2449.4,2449.1,6.681]
[1750837543914,10.0,2449.6,2449.3,0.7872]
[1750837544112,14.08232014,2449.6,2449.3,0.7872]
[1750837544428,4.08225156,2449.7,2449.3,0.7872]
[1750837545523,4.08225156,2449.7,2449.3,4.86999638]